lending/lending_fUSD_20260110
["ID","MTS","AMOUNT","RATE_DAILY","PERIOD"]
[401257504,1768079103489,-3000.0,0.00042737,60]
[401257505,1768079103552,-1300.0,0.00042737,60]
[401257506,1768079103617,-325.68089723,0.0004274,120]
[401257507,1768079103688,-192.76,0.0004274,91]
[401257508,1768079103754,-334.72803532,0.0004274,30]
[401257509,1768079103820,-1000.0,0.0004274,30]
[401257510,1768079103885,-500.0,0.0004274,120]
[401257511,1768079103950,-1742.71889067,0.00042747,120]
[401257512,1768079104014,-3044.07,0.0004275,120]
[401257513,1768079104079,-495.73339609,0.00042762,30]
[401257514,1768079104149,-153.76,0.00042762,120]
[401257515,1768079104216,-505.0721677,0.00042767,30]
[401257516,1768079104281,-500.0,0.00042795,120]
[401257517,1768079104345,-1460.80721598,0.00042799,120]
[401257518,1768079104412,-608.44868116,0.00042799,120]
[401257519,1768079104473,-630.30473575,0.00042799,120]
[401257520,1768079104537,-447.9785177,0.000428,120]
[401257521,1768079104601,-2183.76872161,0.000428,90]
[401257522,1768079104670,-983.18,0.000428,120]
[401257523,1768079104735,-3526.72261674,0.000428,90]
[401257524,1768079104798,-1647.0,0.000428,30]
[401257525,1768079104863,-1367.3164853,0.000428,120]
[401257526,1768079104928,-210.03456399,0.000428,120]
[401257527,1768079104994,-495.73339609,0.00042805,30]
[401257528,1768079105061,-1342.44507783,0.0004284,120]
[401257529,1768079105124,-495.73339609,0.00042849,30]
[401257530,1768079105195,-500.0,0.0004285,120]
[401257531,1768079105259,-153.76,0.00042862,120]
[401257532,1768079105324,-1262.97514256,0.0004288,120]
[401257533,1768079105390,-23029.44,0.00042885,120]
[401257534,1768079105457,-495.73339609,0.00042893,30]
[401257535,1768079105523,-5470.06399589,0.000429,120]
[401257536,1768079105587,-2007.22630718,0.000429,120]
[401257537,1768079105650,-440.07,0.000429,120]
[401257538,1768079105715,-1402.11,0.000429,120]
[401257539,1768079105777,-1628.02732987,0.000429,120]
[401257540,1768079105840,-383.92,0.000429,60]
[401257541,1768079105892,-523.252642,0.00042904,120]
[401257542,1768079105966,-523.252642,0.00042904,120]
[401257543,1768079106042,-523.252642,0.00042904,120]
[401257544,1768079106109,-523.252642,0.00042904,120]
[401257545,1768079106171,-523.252642,0.00042904,120]
[401257546,1768079106247,-523.252642,0.00042904,120]
[401257547,1768079106315,-523.252642,0.00042904,120]
[401257548,1768079106382,-523.252642,0.00042904,120]
[401257549,1768079106447,-523.252642,0.00042904,120]
[401257550,1768079106512,-523.252642,0.00042904,120]
[401257551,1768079106576,-523.252642,0.00042904,120]
[401257552,1768079106639,-523.252642,0.00042904,120]
[401257553,1768079106704,-523.252642,0.00042904,120]
[401257554,1768079106771,-523.252642,0.00042904,120]
[401257555,1768079106835,-523.252642,0.00042904,120]
[401257556,1768079106900,-523.252642,0.00042904,120]
[401257557,1768079106964,-523.252642,0.00042904,120]
[401257558,1768079107028,-523.252642,0.00042904,120]
[401257559,1768079107094,-523.252642,0.00042904,120]
[401257560,1768079107165,-523.252634,0.00042904,120]
[401257561,1768079107231,-500.0,0.00042904,120]
[401257562,1768079107295,-741.26419887,0.00042933,30]
[401257563,1768079107361,-1095.96277342,0.00042933,30]
[401257564,1768079107425,-582.44605535,0.00042933,30]
[401257565,1768079107486,-495.73339609,0.00042937,30]
[401257566,1768079107551,-204.0,0.0004295,30]
[401257567,1768079107614,-500.0,0.00042959,120]
[401257568,1768079107679,-153.76,0.00042962,120]
[401257569,1768079107741,-495.73339609,0.00042981,30]
[401257570,1768079107804,-1000.0,0.00042999,120]
[401257571,1768079108128,-50000.0,0.00043,43]
[401257572,1768079108207,-2049.90439876,0.00043,120]
[401257573,1768079108272,-150.0,0.00043,120]
[401257574,1768079108338,-150.0,0.00043,120]
[401257575,1768079108403,-2000.0,0.00043,120]
[401257576,1768079108467,-9816.60515799,0.00043,60]
[401257577,1768079108538,-2000.0,0.00043,120]
[401257578,1768079108607,-167.97332138,0.00043,120]
[401257579,1768079108673,-19794.58313381,0.00043,30]
[401257580,1768079108738,-4186.51,0.00043,120]
[401257581,1768079108801,-161.15244981,0.00043,120]
[401257582,1768079108870,-500000.0,0.00043,30]
[401257583,1768079108934,-2312.1977,0.00043,120]
[401257584,1768079108998,-846.84095512,0.00043,120]
[401257585,1768079109063,-226.16146372,0.00043,120]
[401257586,1768079109126,-167.5067334,0.00043,120]
[401257587,1768079109192,-157.7521873,0.00043,120]
[401257588,1768079109259,-10000.0,0.00043,60]
[401257589,1768079109325,-732.0,0.00043,120]
[401257590,1768079109396,-200.0,0.00043,120]
[401257591,1768079109465,-20000.0,0.00043,120]
[401257592,1768079109531,-2061.73,0.00043,120]
[401257593,1768079109596,-588.0,0.00043,120]
[401257594,1768079109662,-2672.38748084,0.00043,120]
[401257595,1768079109727,-10000.0,0.00043,120]
[401257596,1768079109791,-22707.0,0.00043,120]
[401257597,1768079109854,-193.0,0.00043,120]
[401257598,1768079109919,-1763.74908315,0.00043,120]
[401257599,1768079109984,-4743.99856213,0.00043,120]
[401257600,1768079110049,-253712.37339304,0.00043,30]
[401257601,1768079110114,-1104.30070188,0.00043,120]
[401257602,1768079110178,-230.56910044,0.00043,30]
[401257603,1768079110242,-500.0,0.00043,120]
[401257604,1768079110307,-151.0,0.00043,60]
[401257605,1768079110369,-156.0,0.00043,120]
[401257606,1768079110431,-3054.04,0.00043,35]
[401257607,1768079110493,-1363.51659976,0.00043,30]
[401257608,1768079110556,-253.0,0.00043,41]
[401257609,1768079110617,-1000.0,0.00043014,30]
[401257610,1768079110679,-500.0,0.00043014,120]
[401257611,1768079110741,-495.73339609,0.00043024,30]
[401257612,1768079110803,-299.03456507,0.00043029,120]
[401257613,1768079110867,-153.76,0.00043062,120]
[401257614,1768079110930,-495.73339609,0.00043068,30]
[401257615,1768079110991,-500.0,0.00043069,120]
[401257616,1768079111053,-1934252.9263,0.00043074,30]
[401257617,1768079111114,-52451.89930928,0.00043082,30]
[401257618,1768079111174,-2440.53870888,0.000431,120]
[401257619,1768079111237,-9523.170341,0.000431,120]
[401257620,1768079111299,-10000.0,0.000431,120]
[401257621,1768079111362,-152.0,0.000431,120]
[401257622,1768079111425,-2594.13489062,0.000431,38]
[401257623,1768079111489,-9472.52983141,0.000431,120]
[401257624,1768079111553,-2200.0,0.00043101,60]
[401257625,1768079111616,-495.73339609,0.00043112,30]
[401257626,1768079111685,-500.0,0.00043124,120]
[401257627,1768079111747,-509.0,0.0004313,120]
[401257628,1768079111808,-495.73339609,0.00043156,30]
[401257629,1768079111871,-2500.0,0.00043157,120]
[401257630,1768079111934,-2500.0,0.00043157,120]
[401257631,1768079111998,-2500.0,0.00043157,120]
[401257632,1768079112060,-2500.0,0.00043157,120]
[401257633,1768079112124,-2500.0,0.00043157,120]
[401257634,1768079112191,-153.76,0.00043162,120]
[401257635,1768079112254,-225.56,0.00043175,30]
[401257636,1768079112317,-351.70542549,0.00043178,120]
[401257637,1768079112382,-495.73339609,0.000432,30]
[401257638,1768079112447,-978.8483767,0.000432,120]
[401257639,1768079112512,-503.44,0.000432,120]
[401257640,1768079112575,-1066.3764075,0.000432,120]
[401257641,1768079112641,-204.84,0.000432,120]
[401257642,1768079112705,-3054.04,0.000432,40]
[401257643,1768079112768,-165.0,0.0004323,120]
[401257644,1768079112832,-495.73339609,0.00043244,30]
[401257645,1768079112898,-2500.0,0.00043257,120]
[401257646,1768079112964,-2500.0,0.00043257,120]
[401257647,1768079113029,-221.70696352,0.00043276,120]
[401257648,1768079113095,-50000.0,0.00043283,40]
[401257649,1768079113163,-50000.0,0.00043283,41]
[401257650,1768079113231,-50000.0,0.00043283,42]
[401257651,1768079113296,-44753.39740336,0.00043283,43]
[401257652,1768079140417,-162.62993913,0.00035555,30]
[401257653,1768079140492,-250.31141575,0.00035555,30]
[401257654,1768079140609,-292.497,0.0003911,30]
[401257655,1768079140676,-300.110504,0.00040806,102]
[401257656,1768079141098,-1000.0,0.00041096,30]
[401257657,1768079141170,-1000.0,0.0004137,30]
[401257658,1768079141232,-1300.0,0.00041457,60]
[401257659,1768079141295,-1000.0,0.00041644,30]
[401257660,1768079141359,-1000.0,0.00041918,30]
[401257661,1768079141432,-1300.0,0.00042005,60]
[401257662,1768079141497,-1000.0,0.00042192,30]
[401257663,1768079141561,-1000.0,0.00042466,30]
[401257664,1768079141622,-1300.0,0.00042553,60]
[401257665,1768079141686,-1000.0,0.00043014,30]
[401257666,1768079141750,-609.74305432,0.00043033,120]
[401257667,1768079141811,-606.15422146,0.00043033,120]
[401257668,1768079141874,-222.1978605,0.00043033,120]
[401257669,1768079141936,-1114.4696625,0.00043033,120]
[401257670,1768079141999,-150.0,0.000431,62]
[401257671,1768079142061,-1300.0,0.00043101,60]
[401257672,1768079142126,-5246.60259664,0.00043283,43]
[401257673,1768079142191,-50000.0,0.00043283,44]
[401257674,1768079142255,-50000.0,0.00043283,45]
[401257675,1768079142319,-50000.0,0.00043283,46]
[401257676,1768079142378,-150.0,0.00043283,30]
[401257677,1768079142439,-152.061,0.00043283,30]
[401257678,1768079142499,-150.0,0.00043283,30]
[401257679,1768079142860,-500.0,0.00043284,30]
[401257680,1768079142921,-500.0,0.00043284,36]
[401257681,1768079142982,-250.0,0.00043284,30]
[401257682,1768079143043,-250.0,0.00043284,36]
[401257683,1768079143104,-2000.0,0.00043284,30]
[401257684,1768079143166,-2000.0,0.00043284,36]
[401257685,1768079143258,-170.96606625,0.00043285,30]
[401257686,1768079143328,-170.96606625,0.00043285,30]
[401257687,1768079143400,-170.96606625,0.00043285,30]
[401257688,1768079143473,-170.96606625,0.00043285,30]
[401257689,1768079143543,-170.96606625,0.00043285,30]
[401257690,1768079143610,-170.96606625,0.00043285,30]
[401257691,1768079143678,-2323.59,0.00043287,120]
[401257692,1768079143747,-1000.0,0.00043288,30]
[401257693,1768079143810,-1022.3508676,0.00043288,30]
[401257694,1768079143874,-52451.89930928,0.00043292,30]
[401257695,1768079143938,-52451.89930928,0.00043292,30]
[401257696,1768079144003,-242.0632872,0.00043298,120]
[401257697,1768079144068,-222.6654734,0.00043298,120]
[401257698,1768079144132,-232.48757784,0.00043298,120]
[401257699,1768079144194,-2347.46,0.000433,120]
[401257700,1768079144256,-356.56434385,0.000433,60]
[401257701,1768079144320,-347.10330993,0.00043302,30]
[401257702,1768079144384,-473.72,0.00043322,120]
[401257703,1768079144449,-500.0,0.00043374,30]
[401257704,1768079144515,-500.0,0.00043374,60]
[401257705,1768079144580,-500.0,0.00043374,120]
[401257706,1768079144642,-250.0,0.00043374,30]
[401257707,1768079144705,-250.0,0.00043374,60]
[401257708,1768079144765,-250.0,0.00043374,120]
[401257709,1768079144826,-166.82440409,0.00043374,30]
[401257710,1768079144888,-2000.0,0.00043374,30]
[401257711,1768079144950,-2000.0,0.00043374,60]
[401257712,1768079145014,-2000.0,0.00043374,120]
[401257713,1768079145076,-300.0,0.00043398,60]
[401257714,1768079145138,-311.1,0.00043398,100]
[401257715,1768079145204,-500.0,0.00043398,60]
[401257716,1768079145266,-500.0,0.00043398,100]
[401257717,1768079145327,-500.0,0.00043398,120]
[401257718,1768079145389,-250.0,0.00043398,60]
[401257719,1768079145451,-250.0,0.00043398,100]
[401257720,1768079145511,-250.0,0.00043398,120]
[401257721,1768079145573,-151.0,0.00043398,60]
[401257722,1768079145635,-151.0,0.00043398,60]
[401257723,1768079145695,-151.0,0.00043398,60]
[401257724,1768079145756,-151.0,0.00043398,60]
[401257725,1768079145816,-151.0,0.00043398,60]
[401257726,1768079145878,-151.0,0.00043398,100]
[401257727,1768079145939,-151.0,0.00043398,60]
[401257728,1768079145998,-151.0,0.00043398,120]
[401257729,1768079146058,-151.0,0.00043398,60]
[401257730,1768079146119,-151.0,0.00043398,60]
[401257731,1768079146181,-151.0,0.00043398,60]
[401257732,1768079146241,-151.0,0.00043398,60]
[401257733,1768079146302,-225.51729144,0.00043398,60]
[401257734,1768079146363,-2000.0,0.00043398,60]
[401257735,1768079146637,-2000.0,0.00043398,100]
[401257736,1768079146704,-2000.0,0.00043398,120]
[401257737,1768079146763,-944.69823536,0.00043398,60]
[401257738,1768079146823,-10000.0,0.00043399,30]
[401257739,1768079146884,-751.5,0.000434,120]
[401257740,1768079146945,-152.0,0.000434,120]
[401257741,1768079147008,-20000.0,0.000435,30]
[401257742,1768079147073,-116500.0,0.000435,120]
[401257743,1768079147137,-1000.0,0.000435,120]
[401257744,1768079147200,-1722.10767199,0.000435,120]
[401257745,1768079147262,-500.0,0.000435,120]
[401257746,1768079147323,-1000.0,0.00043562,30]
[401257747,1768079147385,-4000.0,0.00043564,60]
[401257748,1768079147447,-294.81493991,0.00043564,120]
[401257749,1768079147507,-1300.0,0.00043649,60]
[401257750,1768079147566,-1531.22671143,0.0004369,120]
[401257751,1768079147625,-1388.91361412,0.000437,120]
[401257752,1768079147685,-220.11,0.000437,60]
[401257753,1768079147749,-152.0,0.000437,120]
[401257754,1768079147811,-501.31588778,0.000438,30]
[401257755,1768079147872,-1226.09211512,0.000438,30]
[401257756,1768079147933,-261.88910149,0.000438,120]
[401257757,1768079147992,-239.73664128,0.00043835,120]
[401257758,1768079148054,-1000.0,0.00043836,30]
[401257759,1768079148114,-200.0,0.00043858,120]
[401257760,1768079148176,-503.44,0.0004392,120]
[401257761,1768079148238,-2230.70581958,0.00043987,120]
[401257762,1768079148300,-20000.0,0.00044,60]
[401257763,1768079148361,-150.0,0.00044,120]
[401257764,1768079148421,-200.0,0.00044,120]
[401257765,1768079148480,-601.83330903,0.00044,120]
[401257766,1768079148543,-500.0,0.00044,120]
[401257767,1768079148604,-152.0,0.00044,120]
[401257768,1768079148665,-555.231167,0.00044,57]
[401257769,1768079148725,-253.0,0.00044,45]
[401257770,1768079148788,-150.01,0.0004407,60]
[401257771,1768079148848,-169.0992,0.000441,120]
[401257772,1768079148909,-1000.0,0.0004411,30]
[401257773,1768079148969,-1300.0,0.00044197,60]
[401257774,1768079149024,-158.88876653,0.0004425,120]
[401257775,1768079149094,-200.0,0.00044284,30]
[401257776,1768079149168,-152.0,0.000443,120]
[401257777,1768079149229,-2323.59,0.00044383,120]
[401257778,1768079149289,-1000.0,0.00044384,30]
[401257779,1768079149349,-3121.0906197,0.000444,120]
[401257780,1768079149411,-148126.05113709,0.000445,120]
[401257781,1768079149470,-292.22272299,0.000445,120]
[401257782,1768079149529,-1049.46,0.000446,120]
[401257783,1768079149588,-503.44,0.0004464,120]
[401257784,1768079149647,-1000.0,0.00044658,30]
[401257785,1768079149704,-152.0,0.000447,120]
[401257786,1768079149763,-1629.62,0.00044701,120]
[401257787,1768079149822,-291.45764276,0.00044798,120]
[401257788,1768079149879,-633.5755387,0.0004489,120]
[401257789,1768079149937,-1378.42057878,0.000449,30]
[401257790,1768079149997,-152.0,0.000449,120]
[401257791,1768079150057,-212.91926404,0.000449,120]
[401257792,1768079150117,-1000.0,0.00044932,30]
[401257793,1768079150178,-150.0,0.00044958,120]
[401257794,1768079150237,-204.0,0.0004496,30]
[401257795,1768079150296,-150.0,0.0004498,120]
[401257796,1768079150355,-50000.0,0.00045,45]
[401257797,1768079150414,-150.0,0.00045,120]
[401257798,1768079150474,-1129.69357893,0.00045,32]
[401257799,1768079150532,-150.0,0.00045,120]
[401257800,1768079150591,-450.0,0.00045,120]
[401257801,1768079150647,-200.0,0.00045,120]
[401257802,1768079150704,-295.13086399,0.00045,120]
[401257803,1768079150761,-2500.0,0.00045,30]
[401257804,1768079150817,-1034.54758189,0.00045,120]
[401257805,1768079150873,-10000.0,0.00045,120]
[401257806,1768079150932,-1683.40474822,0.00045,120]
[401257807,1768079150992,-391.39730544,0.00045,30]
[401257808,1768079151054,-372.46218479,0.00045,120]
[401257809,1768079151112,-2220.08,0.00045,120]
[401257810,1768079151171,-1377.0,0.00045,120]
[401257811,1768079151235,-224.12,0.00045,120]
[401257812,1768079151298,-833.84064574,0.00045,120]
[401257813,1768079151357,-159.2,0.00045,85]
[401257814,1768079151417,-5955.0,0.00045,120]
[401257815,1768079151478,-22707.0,0.00045,120]
[401257816,1768079151538,-585.05382872,0.00045,30]
[401257817,1768079151596,-595.29280074,0.00045,120]
[401257818,1768079151655,-253.0,0.00045,48]
[401257819,1768079151715,-1000.0,0.00045205,30]
[401257820,1768079151783,-1300.0,0.00045293,60]
[401257821,1768079151858,-316.245826,0.00045358,120]
[401257822,1768079151918,-503.44,0.0004536,120]
[401257823,1768079151977,-300.0,0.00045367,30]
[401257824,1768079152037,-152.0,0.000454,120]
[401257825,1768079152099,-2323.59,0.00045479,120]
[401257826,1768079152161,-1000.0,0.00045479,30]
[401257827,1768079152220,-152.0,0.000456,120]
[401257828,1768079152277,-452.15533017,0.000457,120]
[401257829,1768079152341,-1000.0,0.00045753,30]
[401257830,1768079152582,-1000.0,0.00045999,120]
[401257831,1768079152640,-1000.0,0.00046,30]
[401257832,1768079152698,-204.85882498,0.00046,30]
[401257833,1768079152755,-3275.50177897,0.00046,30]
[401257834,1768079152813,-150.0,0.00046,120]
[401257835,1768079152870,-500.0,0.00046,120]
[401257836,1768079152929,-200.0,0.00046,120]
[401257837,1768079152989,-325.70561769,0.00046,120]
[401257838,1768079153057,-10080.67819447,0.00046,90]
[401257839,1768079153121,-441.81645534,0.00046,120]
[401257840,1768079153183,-699.25587823,0.00046,120]
[401257841,1768079153245,-429.34366479,0.00046,30]
[401257842,1768079153309,-1843.47512221,0.00046,120]
[401257843,1768079153373,-253.0,0.00046,52]
[401257844,1768079153437,-1000.0,0.00046027,30]
[401257845,1768079153498,-503.44,0.0004608,120]
[401257846,1768079153559,-152.0,0.000461,120]
[401257847,1768079153622,-152.0,0.000462,120]
[401257848,1768079153689,-1000.0,0.00046301,30]
[401257849,1768079153752,-1000.0,0.00046301,30]
[401257850,1768079153816,-1300.0,0.00046389,60]
[401257851,1768079153879,-217.39667557,0.0004649,120]
[401257852,1768079153942,-2323.59,0.00046575,120]
[401257853,1768079154004,-350.63243674,0.00046685,90]
[401257854,1768079154067,-152.0,0.000467,120]
[401257855,1768079154130,-1837.12411425,0.000468,120]
[401257856,1768079154194,-152.0,0.000468,120]
[401257857,1768079154257,-3852.47718708,0.000469,120]
[401257858,1768079154320,-204.0,0.0004698,30]
[401257859,1768079154382,-617.0210493,0.00047,30]
[401257860,1768079154446,-150.0,0.00047,120]
[401257861,1768079154508,-500.0,0.00047,120]
[401257862,1768079154571,-11281.0,0.00047,120]
[401257863,1768079154633,-319.36562501,0.00047,120]
[401257864,1768079154695,-10000.0,0.00047,120]
[401257865,1768079154757,-22707.0,0.00047,120]
[401257866,1768079154819,-279.72343037,0.00047,120]
[401257867,1768079154881,-253.0,0.00047,56]
[401257868,1768079154943,-473.72,0.0004726,120]
[401257869,1768079155005,-155.92895229,0.00047308,120]
[401257870,1768079155068,-152.0,0.000474,120]
[401257871,1768079155130,-152.0,0.000474,120]
[401257872,1768079155192,-372.45489375,0.000475,120]
[401257873,1768079155258,-2323.59,0.00047671,120]
[401257874,1768079155320,-496.82,0.00047801,30]
[401257875,1768079155384,-42016.42,0.000479,120]
[401257876,1768079155450,-150.0,0.00048,120]
[401257877,1768079155513,-500.0,0.00048,120]
[401257878,1768079155576,-200.0,0.00048,120]
[401257879,1768079155638,-152.51375442,0.00048,120]
[401257880,1768079155698,-10000.0,0.00048,120]
[401257881,1768079155759,-295.14134861,0.00048,120]
[401257882,1768079155818,-2578.56296418,0.00048,120]
[401257883,1768079155878,-420.19576926,0.00048,120]
[401257884,1768079155937,-427.98859622,0.00048,120]
[401257885,1768079155997,-1097.27485469,0.00048,120]
[401257886,1768079156061,-3804.81479302,0.00048,120]
[401257887,1768079156122,-789.39808916,0.00048,120]
[401257888,1768079156184,-1445.0,0.00048,120]
[401257889,1768079156246,-152.0,0.00048,120]
[401257890,1768079156309,-1843.47512221,0.00048,120]
[401257891,1768079156371,-253.0,0.00048,59]
[401257892,1768079156432,-4005.82797428,0.000481,120]
[401257893,1768079156493,-152.0,0.000481,120]
[401257894,1768079156549,-7053.47110312,0.000482,120]
[401257895,1768079156611,-527.59674586,0.0004825,120]
[401257896,1768079156672,-12594.81133812,0.000485,60]
[401257897,1768079156731,-475.7023387,0.000485,120]
[401257898,1768079156791,-265.28568608,0.0004851,120]
[401257899,1768079156852,-152.0,0.000486,120]
[401257900,1768079156912,-252.14112656,0.00048658,120]
[401257901,1768079156972,-152.0,0.000487,120]
[401257902,1768079157034,-2323.59,0.00048767,120]
[401257903,1768079157095,-248.41,0.00048774,30]
[401257904,1768079157157,-3997.82192812,0.000488,120]
[401257905,1768079157219,-7554.28928712,0.00048875,60]
[401257906,1768079157280,-6794.46889039,0.00048875,60]
[401257907,1768079157340,-584.0,0.00048885,30]
[401257908,1768079157402,-6375.61030981,0.00048889,120]
[401257909,1768079157462,-233.24510799,0.000489,120]
[401257910,1768079157521,-1800.0,0.00048984,31]
[401257911,1768079157583,-37777.13656066,0.0004899,120]
[401257912,1768079157643,-204.0,0.0004899,30]
[401257913,1768079157707,-3190.6801762,0.00049,120]
[401257914,1768079157770,-790.97320777,0.00049,30]
[401257915,1768079157831,-500.0,0.00049,120]
[401257916,1768079157893,-188.6125885,0.00049,120]
[401257917,1768079157955,-1569.40524625,0.00049,60]
[401257918,1768079158017,-368.6,0.00049,120]
[401257919,1768079158081,-250.0,0.00049,120]
[401257920,1768079158143,-1499.06616246,0.00049,30]
[401257921,1768079158206,-5145.113846,0.00049,90]
[401257922,1768079158270,-425.11353494,0.00049,120]
[401257923,1768079158335,-207.21883794,0.00049,120]
[401257924,1768079158574,-219.71534507,0.00049,120]
[401257925,1768079158640,-571.76796625,0.00049,30]
[401257926,1768079158700,-25621.4940944,0.00049,120]
[401257927,1768079158761,-20000.0,0.00049,120]
[401257928,1768079158822,-376.34461228,0.00049,120]
[401257929,1768079158882,-3664.98156145,0.00049,120]
[401257930,1768079158949,-22707.0,0.00049,120]
[401257931,1768079159011,-260.0,0.00049,120]
[401257932,1768079159071,-253.0,0.00049,63]
[401257933,1768079159134,-1629.62,0.00049027,120]
[401257934,1768079159195,-152.0,0.000492,120]
[401257935,1768079159260,-1000.0,0.00049315,120]
[401257936,1768079159325,-1000.0,0.00049315,120]
[401257937,1768079159394,-1000.0,0.00049315,120]
[401257938,1768079159458,-1000.0,0.00049315,120]
[401257939,1768079159521,-1000.0,0.00049315,120]
[401257940,1768079159582,-847.91580453,0.00049315,120]
[401257941,1768079159643,-2922.79783412,0.0004932,120]
[401257942,1768079159706,-152.0,0.000494,120]
[401257943,1768079159768,-171.45,0.00049464,30]
[401257944,1768079159829,-150.0,0.00049464,30]
[401257945,1768079159890,-584.0,0.00049495,30]
[401257946,1768079159952,-1448.07680301,0.000495,120]
[401257947,1768079160014,-13153.08710853,0.000495,120]
[401257948,1768079160077,-3020.24640127,0.00049556,120]
[401257949,1768079160140,-2054.0,0.0004978,71]
[401257950,1768079160206,-150.0,0.000498,120]
[401257951,1768079160274,-1546.46289927,0.000498,30]
[401257952,1768079160346,-1585.05914897,0.000498,120]
[401257953,1768079160415,-92692.54678946,0.000498,120]
[401257954,1768079160481,-5174.18346161,0.000498,120]
[401257955,1768079160547,-2029.0,0.0004986,63]
[401257956,1768079160610,-2323.59,0.00049863,120]
[401257957,1768079160675,-3158.541981,0.000499,120]
[401257958,1768079160737,-968.54080866,0.000499,60]
[401257959,1768079160805,-250.0,0.000499,120]
[401257960,1768079160867,-1167.274,0.000499,120]
[401257961,1768079160929,-789.25284801,0.000499,30]
[401257962,1768079160993,-963.61769,0.000499,120]
[401257963,1768079161057,-5063.83,0.000499,120]
[401257964,1768079161124,-152.0,0.000499,120]
[401257965,1768079161190,-1059.689,0.0004999,120]
[401257966,1768079161259,-747.12480305,0.0004999,120]
[401257967,1768079161325,-843.83355691,0.0004999,120]
[401257968,1768079161393,-50000.0,0.0005,50]
[401257969,1768079161459,-150.0,0.0005,40]
[401257970,1768079161525,-500.0,0.0005,120]
[401257971,1768079161589,-2847.16,0.0005,120]
[401257972,1768079161654,-2128.7709219,0.0005,120]
[401257973,1768079161718,-172.78815275,0.0005,120]
[401257974,1768079161780,-1368.90077256,0.0005,120]
[401257975,1768079161843,-1087.57960263,0.0005,120]
[401257976,1768079161907,-225.59648408,0.0005,120]
[401257977,1768079161970,-500.0,0.0005,30]
[401257978,1768079162035,-200.0,0.0005,120]
[401257979,1768079162100,-150.0,0.0005,120]
[401257980,1768079162165,-500.0,0.0005,120]
[401257981,1768079162233,-1000.0,0.0005,120]
[401257982,1768079162302,-476.6305836,0.0005,120]
[401257983,1768079162365,-362.253,0.0005,120]
[401257984,1768079162426,-1000.0,0.0005,120]
[401257985,1768079162492,-300.0,0.0005,120]
[401257986,1768079162556,-2500.0,0.0005,30]
[401257987,1768079162620,-2572441.03338315,0.0005,30]
[401257988,1768079162686,-260.65458473,0.0005,120]
[401257989,1768079162750,-2053.58740826,0.0005,30]
[401257990,1768079162813,-19049.8,0.0005,120]
[401257991,1768079162876,-440.86,0.0005,120]
[401257992,1768079162942,-204.32208399,0.0005,30]
[401257993,1768079163008,-188.37357283,0.0005,120]
[401257994,1768079163074,-5265.0,0.0005,120]
[401257995,1768079163139,-131737.99803931,0.0005,60]
[401257996,1768079163204,-20000.0,0.0005,120]
[401257997,1768079163269,-24018.0,0.0005,120]
[401257998,1768079163334,-433.9316768,0.0005,120]
[401257999,1768079163400,-100000.0,0.0005,120]
[401258000,1768079163464,-1009.55696721,0.0005,120]
[401258001,1768079163529,-8695.40071043,0.0005,120]
[401258002,1768079163593,-1468.9631585,0.0005,120]
[401258003,1768079163657,-806.27416439,0.0005,120]